fUSD/lending_fUSD_20260421
["ID","MTS","AMOUNT","RATE_DAILY","PERIOD"]
[420947863,1776783040723,-244.476143,0.00010293,2]
[420947864,1776783040735,-178.61898923,0.00010293,2]
[420947865,1776783040745,-152.16566005,0.00010293,2]
[420947866,1776783040756,-311.35716764,0.00010293,2]
[420947867,1776783040767,-153.85888378,0.00010293,2]
[420947868,1776783040778,-174.61919141,0.00010293,2]
[420947869,1776783040789,-209.40437684,0.00010293,2]
[420947870,1776783040800,-500.0,0.00010348,2]
[420947871,1776783040811,-151.0,0.00010348,2]
[420947872,1776783040821,-5530.0,0.000104,5]
[420947873,1776783040832,-500.0,0.00010403,2]
[420947874,1776783040843,-151.0,0.00010403,2]
[420947875,1776783040854,-30000.0,0.00010441,2]
[420947876,1776783040865,-500.0,0.00010458,2]
[420947877,1776783040876,-151.0,0.00010458,2]
[420947878,1776783040887,-500.0,0.00010513,2]
[420947879,1776783040898,-151.0,0.00010513,2]
[420947880,1776783040909,-200.0,0.00010548,2]
[420947882,1776783040920,-1588.8184636,0.00010548,2]
[420947884,1776783040931,-500.0,0.00010568,2]
[420947886,1776783040943,-151.0,0.00010568,2]
[420947888,1776783040954,-366.5070003,0.00010578,2]
[420947889,1776783040965,-350.0,0.00010583,2]
[420947890,1776783040977,-394.0,0.00010589,2]
[420947891,1776783040988,-408.669,0.000106,2]
[420947893,1776783040999,-5471.204,0.0001062,2]
[420947895,1776783041009,-500.0,0.00010623,2]
[420947896,1776783041021,-151.0,0.00010623,2]
[420947897,1776783041032,-394.0,0.0001063,2]
[420947900,1776783041043,-394.0,0.00010632,2]
[420947902,1776783041054,-394.0,0.00010636,2]
[420947904,1776783041065,-394.0,0.00010674,2]
[420947906,1776783041075,-500.0,0.00010678,2]
[420947908,1776783041087,-394.0,0.0001068,2]
[420947910,1776783041098,-691.5589801,0.00010682,2]
[420947913,1776783041108,-160.0,0.00010682,2]
[420947915,1776783041119,-572.17723,0.00010682,2]
[420947917,1776783041130,-984.35446,0.00010682,2]
[420947919,1776783041141,-160.0,0.00010682,2]
[420947921,1776783041152,-249.219582,0.00010682,2]
[420947923,1776783041163,-338.439164,0.00010682,2]
[420947926,1776783041173,-160.0,0.00010682,2]
[420947928,1776783041184,-617.629888,0.00010682,2]
[420947931,1776783041194,-1075.259777,0.00010682,2]
[420947934,1776783041205,-160.0,0.00010682,2]
[420947936,1776783041216,-239.499014,0.00010682,2]
[420947939,1776783041226,-318.998029,0.00010682,2]
[420947941,1776783041236,-394.0,0.00010686,2]
[420947944,1776783041247,-1100.0,0.000107,3]
[420947946,1776783041258,-574.0,0.00010701,2]
[420947949,1776783041268,-2351.0,0.00010701,2]
[420947951,1776783041279,-1117.0,0.00010701,2]
[420947953,1776783041290,-394.0,0.00010707,2]
[420947955,1776783041301,-394.0,0.00010714,2]
[420947958,1776783041312,-500.0,0.00010733,2]
[420947960,1776783041322,-1600.0,0.00010748,2]
[420947962,1776783041332,-500.0,0.00010788,2]
[420948016,1776783042953,-2300.0,0.000108,3]
[420948018,1776783043010,-433.0,0.00010822,2]
[420948020,1776783043056,-394.0,0.00010828,2]
[420948021,1776783043085,-152.0,0.00010835,2]
[420948023,1776783043094,-154.35640537,0.00010835,2]
[420948025,1776783043104,-1639.78136048,0.00010835,2]
[420948027,1776783043114,-153.27330215,0.00010835,2]
[420948028,1776783043123,-187.2564118,0.00010841,2]
[420948029,1776783043134,-1481.23780761,0.00010841,2]
[420948030,1776783043144,-200.0,0.00010841,2]
[420948031,1776783043154,-364.08279233,0.00010841,2]
[420948032,1776783043163,-620.05434373,0.00010841,2]
[420948033,1776783043173,-181.08010149,0.00010841,2]
[420948034,1776783043183,-187.2564118,0.00010841,2]
[420948035,1776783043193,-500.0,0.00010843,2]
[420948036,1776783043203,-200.0,0.00010849,2]
[420948037,1776783043212,-250.0,0.00010849,2]
[420948038,1776783043221,-250.0,0.00010849,2]
[420948039,1776783043231,-452.94,0.0001088,2]
[420948040,1776783043241,-1000.0,0.00010884,2]
[420948041,1776783043251,-10167.2906,0.00010884,2]
[420948042,1776783043262,-637.797887,0.00010897,2]
[420948043,1776783043272,-59043.4873997,0.00010897,2]
[420948044,1776783043282,-172.5014156,0.00010897,2]
[420948045,1776783043292,-28046.9673073,0.00010897,2]
[420948046,1776783043302,-3298.6882176,0.00010897,2]
[420948047,1776783043313,-332.33,0.00010898,2]
[420948048,1776783043323,-5284636.6497747,0.000109,2]
[420948049,1776783043348,-967.8,0.000109,2]
[420948050,1776783043384,-500.0,9.521e-05,2]
[420948051,1776783043395,-265.11,0.000109,2]
[420948052,1776783044927,-500.0,9.795e-05,2]
[420948053,1776783044937,-500.0,0.00010069,2]
[420948054,1776783044947,-638.9112917,0.00010372,2]
[420948055,1776783044957,-21266.78302746,0.000109,2]
[420948056,1776783045048,-14740.74768417,0.000109,2]
[420948057,1776783045195,-385289.37643227,0.000109,2]
[420948061,1776783046155,-1141.6,0.000109,2]
[420948062,1776783046315,-9545.45744376,0.000109,2]
[420948063,1776783046327,-265.4809981,0.000109,2]
[420948064,1776783046338,-1685.35340766,0.000109,2]
[420948065,1776783046368,-1452.01192522,0.000109,2]
[420948066,1776783046380,-1025.25194819,0.000109,2]
[420948067,1776783046423,-553.523,0.000109,2]
[420948068,1776783046451,-126564.76400135,0.000109,2]
[420948088,1776783622499,8207.50343185,0.00016474,30]
[420948092,1776783697999,196.24,6.399e-05,2]
[420948093,1776783708320,8039.65,7.996e-05,2]
[420948105,1776783773388,1232.23,8.084e-05,2]
[420948121,1776783945741,310.70024772,8.415e-05,30]
[420948122,1776783983567,1166.9,7.928e-05,2]
[420948150,1776784160735,429.97,8.219e-05,2]
[420948152,1776784180315,1487.28989,8.178e-05,2]
[420948166,1776784232331,-522.95,8.241e-05,2]
[420948167,1776784232340,-500.0,8.263e-05,2]
[420948168,1776784232350,-348.45848667,8.285e-05,2]
[420948169,1776784232360,-500.0,8.376e-05,2]
[420948170,1776784232370,-183.17,8.415e-05,2]
[420948171,1776784232380,-182.67,8.451e-05,2]
[420948172,1776784232391,-228.96,8.486e-05,2]
[420948173,1776784232402,-200.0,8.494e-05,2]
[420948174,1776784232413,-228.33,8.534e-05,2]
[420948175,1776784232423,-1200.0,8.544e-05,2]
[420948176,1776784232433,-5203.1598,8.545e-05,2]
[420948177,1776784232443,-274.76,8.558e-05,2]
[420948178,1776784232452,-300.0,8.609e-05,2]
[420948179,1776784232462,-2377.11571333,8.611e-05,2]
[420948180,1776784232481,-315.71428667,8.611e-05,2]
[420948181,1776784232491,-274.0,8.618e-05,2]
[420948182,1776784232501,-320.55,8.63e-05,2]
[420948183,1776784232510,-150.0,8.644e-05,2]
[420948184,1776784232519,-156532.1392,8.644e-05,2]
[420948185,1776784232528,-21276.4862,8.645e-05,2]
[420948186,1776784232538,-10868.2072,8.645e-05,2]
[420948187,1776784232548,-2500.0,8.645e-05,2]
[420948188,1776784232559,-593.7,8.701e-05,2]
[420948189,1776784232568,-641.12,8.701e-05,2]
[420948190,1776784232579,-267.67,8.701e-05,2]
[420948191,1776784232589,-223.06,8.701e-05,2]
[420948192,1776784232598,-500.0,8.723e-05,2]
[420948193,1776784232608,-265.19023157,8.723e-05,2]
[420948194,1776784232618,-500.0,8.723e-05,2]
[420948195,1776784232627,-500.50479008,8.723e-05,2]
[420948196,1776784232637,-500.0,8.723e-05,2]
[420948197,1776784232647,-500.0,8.723e-05,2]
[420948198,1776784232656,-500.0,8.723e-05,2]
[420948199,1776784232666,-505.90227046,8.723e-05,2]
[420948200,1776784232676,-500.0,8.723e-05,2]
[420948201,1776784232686,-500.0,8.744e-05,2]
[420948202,1776784232695,-500.0,8.744e-05,2]
[420948203,1776784232705,-500.0,8.744e-05,2]
[420948204,1776784232714,-500.0,8.744e-05,2]
[420948205,1776784232724,-497.21245964,8.744e-05,2]
[420948206,1776784232735,-10433.59052773,8.744e-05,2]
[420948207,1776784232745,-500.0,8.791e-05,2]
[420948208,1776784232754,-500.0,8.791e-05,2]
[420948209,1776784232763,-500.0,8.791e-05,2]
[420948210,1776784232773,-500.0,8.791e-05,2]
[420948211,1776784232783,-500.0,8.791e-05,2]
[420948212,1776784232793,-500.0,8.791e-05,2]
[420948213,1776784232803,-500.0,8.791e-05,2]
[420948214,1776784232813,-500.0,8.791e-05,2]
[420948215,1776784232824,-150.0,8.791e-05,2]
[420948217,1776784232834,-500.0,8.791e-05,2]
[420948219,1776784232844,-500.0,8.791e-05,2]
[420948221,1776784232854,-150.0,8.791e-05,2]
[420948223,1776784232864,-500.0,8.791e-05,2]
[420948225,1776784232875,-222.40782259,8.791e-05,2]
[420948227,1776784232885,-500.0,8.791e-05,2]
[420948229,1776784232895,-150.0,8.791e-05,2]
[420948231,1776784232905,-290.87238876,8.791e-05,2]
[420948233,1776784232914,-150.0,8.791e-05,2]
[420948234,1776784232924,-27654.4664335,9.04e-05,2]
[420948237,1776784232937,-1254.41808677,9.04e-05,2]
[420948240,1776784232961,-427.65,9.04e-05,2]
[420948243,1776784232977,-533.19435917,9.04e-05,2]
[420948245,1776784232989,-4287.26849353,9.04e-05,2]
[420948247,1776784233000,-400.0,9.04e-05,2]
[420948250,1776784233012,-5402.76608939,9.04e-05,2]
[420948252,1776784233024,-255.51004428,9.04e-05,2]
[420948262,1776784233110,-8475.41891671,9.04e-05,2]
[420948264,1776784233122,-1278.9783273,9.04e-05,2]
[420948266,1776784233132,-632.90353496,9.065e-05,2]
[420948268,1776784233142,-300.0,9.065e-05,2]
[420948270,1776784233151,-500.0,9.065e-05,2]
[420948272,1776784233160,-250.0,9.065e-05,2]
[420948274,1776784233170,-500.0,9.065e-05,2]
[420948277,1776784233180,-898.00986995,9.175e-05,2]
[420948279,1776784233189,-562.2908788,9.271e-05,2]
[420948281,1776784233199,-1001.98527228,9.271e-05,2]
[420948283,1776784233208,-522.06145725,9.271e-05,2]
[420948285,1776784233218,-1000.0,9.271e-05,2]
[420948287,1776784233226,-503.9209333,9.271e-05,2]
[420948289,1776784233236,-403.60972616,9.398e-05,2]
[420948311,1776784238717,-1276.39027384,9.398e-05,2]
[420948312,1776784238727,-420.0,9.47e-05,2]
[420948313,1776784238737,-255.0,9.508e-05,2]
[420948314,1776784238747,-196.24,9.598e-05,2]
[420948315,1776784238756,-414.05,9.62e-05,2]
[420948316,1776784238766,-1117.0,9.658e-05,2]
[420948317,1776784238776,-9999.99,9.67e-05,2]
[420948318,1776784238786,-9999.99,9.67e-05,2]
[420948319,1776784238795,-299.99,9.67e-05,2]
[420948320,1776784238805,-823.18330102,9.818e-05,2]
[420948321,1776784238815,-151.0,9.843e-05,2]
[420948322,1776784238826,-260.0,9.863e-05,2]
[420948323,1776784238836,-150.0,9.888e-05,2]
[420948324,1776784238845,-150.0,9.888e-05,2]
[420948325,1776784238855,-150.0,9.888e-05,2]
[420948326,1776784238865,-1500.0,9.968e-05,2]
[420948327,1776784238874,-10718.58,9.968e-05,2]
[420948328,1776784238883,-7429.6,0.0001,2]
[420948329,1776784238893,-200.0,0.0001,2]
[420948330,1776784238902,-500.0,0.0001,2]
[420948331,1776784238912,-500.0,0.0001,2]
[420948333,1776784238922,-500.0,0.0001,2]
[420948334,1776784238931,-500.0,0.0001,2]
[420948335,1776784238941,-324.58914921,0.0001,2]
[420948336,1776784238951,-1386.78395259,0.0001,2]
[420948337,1776784238966,-151.0,0.00010073,2]
[420948338,1776784238976,-1117.0,0.00010166,2]
[420948339,1776784238986,-151.44,0.00010179,2]
[420948340,1776784238996,-250.0,0.00010277,2]
[420948341,1776784239007,-151.12852573,0.00010306,2]
[420948342,1776784239017,-578.20924308,0.00010323,2]
[420948343,1776784239026,-721.12765535,0.00010323,2]
[420948344,1776784239035,-9552.16786547,0.00010323,2]
[420948345,1776784239045,-1428.38747117,0.00010323,2]
[420948346,1776784239054,-200.0,0.00010323,2]
[420948347,1776784239063,-500.0,0.00010323,2]
[420948348,1776784239073,-209.40437684,0.00010323,2]
[420948349,1776784239083,-275.66265529,0.00010323,2]
[420948350,1776784239092,-151.0,0.00010323,2]
[420948351,1776784239102,-209.40437685,0.00010323,2]
[420948352,1776784239111,-799.54513345,0.00010323,2]
[420948353,1776784239120,-174.61919141,0.00010323,2]
[420948355,1776784239131,-194.72792766,0.00010323,2]
[420948356,1776784239140,-693.3919763,0.00010323,2]
[420948357,1776784239150,-152.76414574,0.00010323,2]
[420948358,1776784239160,-209.40437684,0.00010323,2]
[420948359,1776784239170,-279.9045709,0.00010323,2]
[420948360,1776784239179,-2351.0,0.00010338,2]
[420948362,1776784239189,-2697.03625234,0.00010378,2]
[420948363,1776784239199,-500.0,0.00010378,2]
[420948364,1776784239209,-151.0,0.00010378,2]
[420948366,1776784239220,-900.0,0.000104,3]
[420948367,1776784239230,-420.0,0.00010417,2]
[420948368,1776784239240,-500.0,0.00010433,2]
[420948369,1776784239250,-151.0,0.00010433,2]
[420948370,1776784239260,-433.0,0.00010459,2]
[420948371,1776784239270,-411.91529499,0.00010488,2]
[420948372,1776784239283,-88.08470501,0.00010488,2]
[420948373,1776784239292,-151.0,0.00010488,2]
[420948374,1776784239302,-1900.0,0.000105,3]
[420948375,1776784239312,-151.0,0.00010543,2]
[420948376,1776784239322,-151.0,0.00010598,2]
[420948377,1776784239334,-2900.0,0.000106,3]
[420948378,1776784239345,-209.03489163,0.00010625,2]
[420948379,1776784239355,-927.0,0.0001063,2]
[420948380,1776784239366,-1219.0,0.0001063,2]
[420948381,1776784239375,-2474.0,0.00010644,2]
[420948382,1776784239385,-416.0,0.00010644,2]
[420948383,1776784239395,-326.935,0.00010645,2]
[420948384,1776784239404,-151.0,0.00010653,2]
[420948385,1776784239414,-4376.963,0.00010681,2]
[420948386,1776784239424,-3900.0,0.000107,3]
[420948387,1776784239434,-1117.0,0.00010701,2]
[420948388,1776784239443,-151.0,0.00010708,2]
[420948389,1776784239453,-500.0,0.0001071,2]
[420948390,1776784239463,-500.0,0.0001071,2]
[420948391,1776784239472,-500.0,0.0001071,2]
[420948392,1776784239482,-500.0,0.0001071,2]
[420948393,1776784239492,-632.65490177,0.0001071,2]
[420948394,1776784239501,-151.0,0.00010763,2]
[420948395,1776784239511,-391.23730581,0.00010779,2]
[420948396,1776784239520,-500.0,0.00010779,2]
[420948397,1776784239530,-500.0,0.00010779,2]
[420948398,1776784239540,-165.97374028,0.00010779,2]
[420948399,1776784239549,-500.0,0.00010779,2]
[420948400,1776784239558,-234.38684926,0.00010779,2]
[420948401,1776784239568,-218.89270219,0.00010779,2]
[420948402,1776784239579,-500.0,0.00010779,2]
[420948403,1776784239592,-500.0,0.00010779,2]
[420948404,1776784239602,-500.0,0.00010779,2]
[420948405,1776784239612,-500.0,0.00010779,2]
[420948406,1776784239622,-202.1216208,0.00010779,2]
[420948407,1776784239632,-500.0,0.00010779,2]
[420948408,1776784239642,-500.0,0.00010779,2]
[420948409,1776784239652,-500.0,0.00010779,2]
[420948410,1776784239662,-500.0,0.00010779,2]
[420948411,1776784239673,-160.0,0.0001078,2]
[420948412,1776784239683,-328.274541,0.0001078,2]
[420948413,1776784239692,-496.549083,0.0001078,2]
[420948414,1776784239702,-160.0,0.0001078,2]
[420948415,1776784239712,-479.444504,0.0001078,2]
[420948416,1776784239722,-798.889009,0.0001078,2]
[420948417,1776784239732,-160.0,0.0001078,2]
[420948418,1776784239741,-450.639753,0.0001078,2]
[420948419,1776784239751,-741.279506,0.0001078,2]
[420948420,1776784239761,-160.0,0.0001078,2]
[420948421,1776784239770,-1286.239877,0.0001078,2]
[420948422,1776784239780,-2412.479754,0.0001078,2]
[420948423,1776784239790,-461.03932006,0.0001079,2]
[420948424,1776784239800,-2000.0,0.0001079,2]
[420948426,1776784239810,-2000.0,0.0001079,2]
[420948427,1776784239820,-4900.0,0.000108,3]
[420948428,1776784239830,-1893.36426586,0.000108,2]
[420948429,1776784239844,-1826.1386616,0.000108,2]
[420948430,1776784239860,-985.57728,0.000108,2]
[420948450,1776784242347,-29176.91979254,0.000108,2]
[420948451,1776784242358,-151.0,0.00010818,2]
[420948452,1776784242368,-200.0,0.00010849,2]
[420948453,1776784242377,-250.0,0.00010849,2]
[420948454,1776784242387,-250.0,0.00010849,2]
[420948455,1776784242401,-250.0,0.00010849,2]
[420948456,1776784242411,-250.0,0.00010849,2]
[420948457,1776784242420,-250.0,0.00010849,2]
[420948458,1776784242431,-250.0,0.00010849,2]
[420948459,1776784242440,-1481.23780761,0.00010871,2]
[420948460,1776784242450,-200.0,0.00010871,2]
[420948461,1776784242460,-181.08010149,0.00010871,2]
[420948462,1776784242470,-151.0,0.00010873,2]
[420948463,1776784242480,-259.19512258,0.00010883,2]
[420948464,1776784242490,-151.0,0.00010888,2]
[420948465,1776784242500,-151.0,0.00010898,2]
[420948466,1776784242510,-1058.769642,0.00010899,2]
[420948467,1776784242520,-16901.01784413,0.000109,2]
[420948468,1776784242548,-32838.57893023,0.000109,2]
[420948469,1776784242582,-289.5,0.000109,2]
[420948470,1776784242594,-2018.596905,0.000109,2]
[420948476,1776784245265,-307.35954671,0.0001079,2]
[420948477,1776784245276,-4294.85809683,0.000109,2]
[420948478,1776784245288,-1718.45258,0.000109,2]
[420948479,1776784245443,-9068.50823339,0.000109,2]
[420948480,1776784245456,-75504.99999998,0.000109,2]
[420948481,1776784245479,-413.84376303,0.000109,2]
[420948491,1776784246395,-20709.69109536,0.000109,2]
[420948492,1776784246408,-3979.3912413,0.000109,2]
[420948493,1776784246450,-529.86,0.000109,2]
[420948494,1776784246768,-26979.45426156,0.000109,2]
[420948495,1776784246824,-287.7125,0.000109,2]
[420948516,1776784577801,502.55526541,0.000165,120]
[420948528,1776785255972,19333.62,8.035e-05,2]
[420948529,1776785257792,2000.0,8.219e-05,2]
[420948539,1776785345140,-209.94,8.351e-05,2]
[420948540,1776785345164,-250.0,8.363e-05,2]
[420948541,1776785345188,-300.0,8.443e-05,2]
[420948542,1776785345212,-500.0,8.444e-05,2]
[420948543,1776785345235,-165.97374028,8.444e-05,2]
[420948544,1776785345262,-391.23730581,8.444e-05,2]
[420948545,1776785345286,-500.0,8.444e-05,2]
[420948546,1776785345311,-107.36895391,8.444e-05,2]
[420948548,1776785362624,382.42,8.083e-05,2]
[420948566,1776785435256,-708.24423702,8.28e-05,2]
[420948567,1776785435317,-300.37999902,8.28e-05,2]
[420948568,1776785435329,-108.37576396,8.28e-05,2]
[420948569,1776785435339,-409.75254712,8.357e-05,2]
[420948570,1776785435352,-143.23263439,8.357e-05,2]
[420948571,1776785435361,-500.0,8.423e-05,2]
[420948572,1776785435371,-500.0,8.423e-05,2]
[420948573,1776785435381,-24.70717212,8.444e-05,2]
[420948574,1776785435401,-1175.29282788,8.444e-05,2]
[420948575,1776785435411,-300.0,8.444e-05,2]
[420948576,1776785435420,-150.0,8.444e-05,2]
[420948577,1776785435430,-500.0,8.444e-05,2]
[420948578,1776785435440,-256.076,8.445e-05,2]
[420948579,1776785435450,-5610.52386255,8.445e-05,2]
[420948580,1776785435461,-1809.927,8.445e-05,2]
[420948581,1776785435473,-5685.58621612,8.445e-05,2]
[420948582,1776785435494,-169680.59062723,8.445e-05,2]
[420948583,1776785435506,-5778.5235346,8.445e-05,2]
[420948584,1776785435522,-895.86861586,8.445e-05,2]
[420948587,1776785437776,-611243.55893624,8.445e-05,2]
[420948588,1776785437833,-4897.49151961,8.445e-05,2]
[420948589,1776785437846,-452.55720341,8.445e-05,2]
[420948590,1776785437996,-51811.78506749,8.445e-05,2]
[420948591,1776785438055,-43004.03601689,8.445e-05,2]
[420948592,1776785438066,-1048.39640506,8.47e-05,2]
[420948593,1776785438077,-1224.48,8.47e-05,2]
[420948594,1776785438088,-192.5,8.502e-05,2]
[420948595,1776785438098,-419.88,8.502e-05,2]
[420948596,1776785438108,-262.41,8.502e-05,2]
[420948597,1776785438118,-209.93,8.502e-05,2]
[420948598,1776785438128,-209.03489163,8.517e-05,2]
[420948599,1776785438139,-500.0,8.517e-05,2]
[420948600,1776785438149,-500.0,8.517e-05,2]
[420948601,1776785438161,-232.26937202,8.517e-05,2]
[420948603,1776785438171,-4376.963,8.544e-05,2]
[420948605,1776785438181,-326.935,8.544e-05,2]
[420948607,1776785438193,-2500.0,8.544e-05,2]
[420948610,1776785438204,-500.0,8.623e-05,2]
[420948612,1776785438214,-500.0,8.623e-05,2]
[420948614,1776785438224,-1086.1218991,8.643e-05,3]
[420948616,1776785438235,-213.91,8.643e-05,2]
[420948618,1776785438245,-1117.0,8.716e-05,2]
[420948620,1776785438255,-213.91,8.917e-05,2]
[420948622,1776785438266,-823.18330102,8.971e-05,2]
[420948624,1776785438280,-900.0,9e-05,3]
[420948626,1776785438291,-4032.46583489,9.008e-05,2]
[420948628,1776785438302,-150.0,9.019e-05,2]
[420948631,1776785438313,-150.0,9.019e-05,2]
[420948633,1776785438323,-150.0,9.019e-05,2]
[420948635,1776785438333,-1117.0,9.175e-05,2]
[420948637,1776785438343,-500.0,9.186e-05,2]
[420948639,1776785438353,-5000.0,9.186e-05,2]
[420948641,1776785438363,-250.0,9.186e-05,2]
[420948643,1776785438374,-500.0,9.186e-05,2]
[420948645,1776785438384,-213.92,9.191e-05,2]
[420948647,1776785438394,-2000.0,9.247e-05,2]
[420948649,1776785438405,-1463.28199546,9.288e-05,2]
[420948651,1776785438418,-216.71800454,9.288e-05,2]
[420948653,1776785438430,-420.0,9.288e-05,2]
[420948655,1776785438443,-255.0,9.288e-05,2]
[420948657,1776785438454,-3277.96,9.451e-05,2]
[420948659,1776785438464,-1224.48,9.529e-05,2]
[420948661,1776785438473,-449.35,9.6e-05,2]
[420948663,1776785438483,-2587.06,9.606e-05,2]
[420948665,1776785438495,-1117.0,9.658e-05,2]
[420948668,1776785438505,-150.0,9.789e-05,2]
[420948670,1776785438515,-150.0,9.789e-05,2]
[420948672,1776785438525,-150.0,9.789e-05,2]
[420948674,1776785438535,-150.0,9.789e-05,2]
[420948676,1776785438544,-150.0,9.789e-05,2]
[420948678,1776785438554,-150.0,9.789e-05,2]
[420948680,1776785438564,-150.0,9.789e-05,2]
[420948682,1776785438574,-150.0,9.789e-05,2]
[420948684,1776785438584,-150.0,9.789e-05,2]
[420948686,1776785438594,-166.05983851,9.789e-05,2]
[420948688,1776785438604,-150.0,9.789e-05,2]
[420948690,1776785438614,-150.0,9.789e-05,2]
[420948692,1776785438625,-500.0,9.789e-05,2]
[420948694,1776785438635,-150.0,9.807e-05,2]
[420948696,1776785438646,-150.0,9.814e-05,2]
[420948698,1776785438656,-150.0,9.814e-05,2]
[420948700,1776785438666,-150.0,9.818e-05,2]
[420948702,1776785438676,-150.0,9.825e-05,2]
[420948704,1776785438686,-150.0,9.838e-05,2]
[420948706,1776785438696,-150.0,9.84e-05,2]
[420948708,1776785438706,-150.0,9.843e-05,2]
[420948710,1776785438716,-150.0,9.843e-05,2]
[420948712,1776785438727,-150.0,9.846e-05,2]
[420948714,1776785438737,-150.0,9.853e-05,2]
[420948716,1776785438747,-151.44,9.855e-05,2]
[420948718,1776785438758,-150.0,9.862e-05,2]
[420948721,1776785438768,-260.0,9.863e-05,2]
[420948723,1776785438778,-150.0,9.863e-05,2]
[420948725,1776785438788,-150.0,9.865e-05,2]
[420948727,1776785438797,-150.0,9.875e-05,2]
[420948729,1776785438807,-2277.778115,9.878e-05,2]
[420948731,1776785438817,-8568.074266,9.878e-05,2]
[420948733,1776785438828,-1743.598804,9.878e-05,2]
[420948735,1776785438838,-1219.976008,9.878e-05,2]
[420948737,1776785438848,-150.0,9.88e-05,2]
[420948739,1776785438858,-150.0,9.888e-05,2]
[420948741,1776785438867,-150.0,9.888e-05,2]
[420948744,1776785438883,-150.0,9.888e-05,2]
[420948746,1776785438893,-150.0,9.89e-05,2]
[420948748,1776785438904,-150.0,9.898e-05,2]
[420948750,1776785438914,-150.0,9.898e-05,2]
[420948752,1776785438923,-150.0,9.904e-05,2]
[420948754,1776785438933,-150.0,9.913e-05,2]
[420948756,1776785438943,-150.0,9.916e-05,2]
[420948758,1776785438953,-150.0,9.916e-05,2]
[420948760,1776785438964,-150.0,9.917e-05,2]
[420948762,1776785438974,-150.0,9.932e-05,2]
[420948764,1776785438985,-150.0,9.934e-05,2]
[420948766,1776785438995,-150.0,9.937e-05,2]
[420948768,1776785439005,-150.0,9.941e-05,2]
[420948770,1776785439015,-150.0,9.952e-05,2]
[420948773,1776785439025,-150.0,9.952e-05,2]
[420948775,1776785439035,-150.0,9.961e-05,2]
[420948777,1776785439044,-150.0,9.961e-05,2]
[420948779,1776785439054,-150.0,9.962e-05,2]
[420948781,1776785439063,-150.0,9.966e-05,2]
[420948783,1776785439073,-150.0,9.97e-05,2]
[420948785,1776785439082,-150.0,9.981e-05,2]
[420948787,1776785439092,-150.0,9.987e-05,2]
[420948789,1776785439102,-150.0,9.987e-05,2]
[420948791,1776785439112,-150.0,9.988e-05,2]
[420948793,1776785439122,-150.0,9.989e-05,2]
[420948795,1776785439132,-150.0,9.991e-05,2]
[420948797,1776785439142,-2709.33258457,0.0001,2]
[420948799,1776785439152,-7040.63161299,0.0001,2]
[420948801,1776785439162,-5741.0944094,0.0001,2]
[420948803,1776785439172,-817.93068666,0.0001,2]
[420948805,1776785439186,-1826.1386616,0.0001,2]
[420948885,1776785439933,-2200.0,0.0001,2]
[420948892,1776785439990,-1820.03603116,0.0001,2]
[420948894,1776785440000,-6390.86301115,0.0001,2]
[420948896,1776785440010,-200.0,0.0001,2]
[420948898,1776785440020,-189.78674529,0.0001,2]
[420948900,1776785440032,-151.0,0.0001,2]
[420948902,1776785440042,-500.0,0.0001,2]
[420948904,1776785440052,-500.0,0.0001,2]
[420948907,1776785440062,-500.0,0.0001,2]
[420948909,1776785440072,-500.0,0.0001,2]
[420948911,1776785440082,-151.0,0.0001,2]
[420948913,1776785440092,-324.58914921,0.0001,2]
[420948915,1776785440102,-154.96599412,0.0001,2]
[420948917,1776785440112,-1900.0,0.0001,3]
[420948919,1776785440123,-1386.78395259,0.0001,2]
[420948921,1776785440134,-150.0,0.00010007,2]
[420948923,1776785440144,-150.0,0.00010007,2]